bitfinex/quotes_SOLUSD_20220109
["timestamp","ask_amount","ask_price","bid_price","bid_amount"]
[1641750241991,1.736,143.96,143.88,1.95678482]
[1641750242291,24.6563,143.96,143.88,1.95678482]
[1641750242693,30.22310222,143.95,143.84,1.95678482]
[1641750242892,1.737,143.94,143.84,1.95678482]
[1641750243895,1.737,143.94,143.85,0.25]
[1641750244092,30.22310222,143.95,143.85,3.25]
[1641750244294,30.22310222,143.95,143.86,1.78082586]
[1641750244494,30.22310222,143.95,143.87,3.25]
[1641750244896,30.22310222,143.95,143.88,1.78082586]
[1641750245094,30.22310222,143.95,143.88,3.73761068]
[1641750245295,30.22310222,143.95,143.89,0.25]
[1641750245496,30.22310222,143.95,143.89,3.76782586]
[1641750245897,30.22310222,143.95,143.89,14.19092586]
[1641750246197,0.25,143.97,143.89,14.19092586]
[1641750246498,0.25,143.97,143.9,1.78082586]
[1641750246895,0.25,143.97,143.91,0.25]
[1641750247298,0.25,143.97,143.91,10.6712]
[1641750251207,0.25,143.97,143.91,10.4212]
[1641750251410,0.25,143.97,143.89,12.1595]
[1641750251609,0.25,143.97,143.89,10.4225]
[1641750253214,0.25,143.97,143.89,12.37928482]
[1641750253814,0.25,143.97,143.89,10.4225]
[1641750256435,1.986,143.97,143.88,1.95678482]
[1641750257339,1.986,143.97,143.87,10.4239]
[1641750259840,12.016,143.97,143.87,10.4239]
[1641750260040,23.0238,143.96,143.87,10.4239]
[1641750263944,10.28,143.97,143.87,10.4239]
[1641750264146,10.28,143.97,143.91,10.4211]
[1641750266151,10.28,143.97,143.89,14.11528482]
[1641750266449,10.28,143.97,143.9,0.25]
[1641750267748,10.28,143.97,143.9,10.6723]
[1641750270657,10.28,143.97,143.89,1.736]
[1641750270856,12.016,143.97,143.88,4.95678482]
[1641750271258,12.016,143.97,143.87,1.95678482]
[1641750271459,24.334,143.96,143.87,1.95678482]
[1641750271657,1.737,143.95,143.87,1.95678482]
[1641750271856,26.071,143.96,143.87,1.95678482]
[1641750272360,26.141,143.96,143.86,10.4247]
[1641750273259,38.43780342,143.96,143.84,12.38288482]
[1641750273462,10.03,143.95,143.84,12.38288482]
[1641750273661,0.07,143.93,143.84,1.95678482]
[1641750273861,0.07,143.9,143.83,1.95678482]
[1641750274163,1.737,143.89,143.83,1.95678482]
[1641750274361,23.89164681,143.88,143.83,1.95678482]
[1641750274584,1.737,143.87,143.83,1.95678482]
[1641750274791,4.737,143.87,143.83,1.95678482]
[1641750274997,4.737,143.87,143.8,1.95678482]
[1641750276195,3.0,143.87,143.8,1.95678482]
[1641750276392,33.92164681,143.88,143.8,1.95678482]
[1641750277394,33.92164681,143.88,143.81,0.25]
[1641750277597,33.92164681,143.88,143.82,1.737]
[1641750277996,33.92164681,143.88,143.82,3.69378482]
[1641750278898,33.92164681,143.88,143.82,14.12178482]
[1641750280103,33.92164681,143.88,143.82,12.38478482]
[1641750282604,33.92164681,143.88,143.82,10.428]
[1641750282802,33.92164681,143.88,143.81,1.95678482]
[1641750284102,33.92164681,143.88,143.8,12.38568482]
[1641750284301,33.92164681,143.88,143.8,1.95678482]
[1641750284503,1.738,143.87,143.8,1.95678482]
[1641750284902,1.738,143.87,143.79,1.737]
[1641750286202,1.738,143.87,143.78,10.4305]
[1641750286403,1.738,143.87,143.79,0.25]
[1641750286606,33.92164681,143.88,143.81,10.4288]
[1641750287405,33.92164681,143.88,143.82,3.0]
[1641750287604,33.92164681,143.88,143.81,10.4288]
[1641750287807,1.737,143.87,143.82,3.0]
[1641750288005,23.89164681,143.88,143.82,13.4279]
[1641750289510,23.89164681,143.88,143.8,10.4292]
[1641750290911,23.89164681,143.88,143.81,0.25]
[1641750291111,23.89164681,143.88,143.81,12.4155]
[1641750291310,57.9982,143.9,143.81,10.6785]
[1641750291510,11.767,143.92,143.82,1.737]
[1641750292314,23.68572137,143.91,143.82,1.737]
[1641750292613,1.737,143.9,143.81,35.0021]
[1641750292813,23.1272,143.9,143.81,35.0021]
[1641750293540,23.1272,143.9,143.84,10.4268]
[1641750295241,23.1272,143.9,143.82,10.4277]
[1641750295441,1.737,143.89,143.82,10.4277]
[1641750295648,11.767,143.89,143.79,1.95678482]
[1641750296041,11.767,143.89,143.78,1.737]
[1641750296241,85.8157,143.89,143.82,10.4279]
[1641750296441,84.0787,143.89,143.82,10.4279]
[1641750297543,10.03,143.89,143.82,10.4279]
[1641750302050,10.03,143.89,143.82,12.38468482]
[1641750302251,10.03,143.89,143.82,14.12168482]
[1641750302450,10.03,143.89,143.82,12.38468482]
[1641750303654,10.03,143.89,143.82,1.95678482]
[1641750303853,3.51782586,143.88,143.82,1.95678482]
[1641750304054,10.527,143.88,143.82,1.95678482]
[1641750304254,10.03,143.87,143.82,1.95678482]
[1641750304455,1.737,143.86,143.82,1.95678482]
[1641750304671,34.13907617,143.85,143.79,1.95678482]
[1641750304956,1.738,143.84,143.79,1.95678482]
[1641750305555,1.78082586,143.83,143.79,1.95678482]
[1641750305758,1.78082586,143.83,143.78,1.95678482]
[1641750305955,1.738,143.82,143.78,1.95678482]
[1641750306560,10.4361,143.81,143.78,1.95678482]
[1641750306758,27.74779924,143.79,143.76,1.95678482]
[1641750307562,27.74779924,143.79,143.75,1.95678482]
[1641750308562,27.74779924,143.79,143.74,1.95678482]
[1641750310269,39.92289924,143.79,143.74,1.95678482]
[1641750310663,39.92289924,143.79,143.72,1.738]
[1641750310873,39.92289924,143.79,143.7,1.95678482]
[1641750311065,0.07,143.78,143.7,1.95678482]
[1641750311263,0.07,143.78,143.67,5.65321762]
[1641750311264,0.07,143.76,143.67,5.65321762]
[1641750311464,0.07,143.74,143.67,1.739]
[1641750311662,11.769,143.73,143.67,1.739]
[1641750312091,24.15674655,143.72,143.67,1.739]
[1641750312291,1.739,143.71,143.67,1.739]
[1641750312493,1.809,143.71,143.66,3.91421762]
[1641750312692,1.809,143.71,143.61,10.4429]
[1641750313092,1.809,143.71,143.62,3.0]
[1641750313292,1.809,143.71,143.6,1.74]
[1641750313495,11.81082586,143.7,143.58,1.74]
[1641750313791,1.74,143.69,143.56,1.74]
[1641750313991,1.74,143.69,143.56,1.24]
[1641750313992,11.77,143.69,143.56,1.24]
[1641750314599,29.28269626,143.64,143.57,3.0]
[1641750314793,36.74869626,143.64,143.57,3.0]
[1641750314993,36.74869626,143.64,143.56,11.6858]
[1641750315196,36.74869626,143.64,143.56,1.24]
[1641750315392,11.77,143.63,143.56,1.24]
[1641750315792,10.4504,143.6,143.56,1.24]
[1641750315994,30.08589642,143.58,143.56,1.24]
[1641750316200,6.06439992,143.57,143.56,1.24]
[1641750316595,12.82739992,143.57,143.56,1.24]
[1641750317597,12.82739992,143.57,143.56,0.74]
[1641750317996,6.06439992,143.57,143.47,147.16083866]
[1641750318396,6.06439992,143.57,143.48,3.26]
[1641750318804,6.06439992,143.57,143.52,10.4478]
[1641750319005,10.03,143.65,143.53,3.25]
[1641750319205,10.03,143.65,143.53,5.03082586]
[1641750319801,24.63028299,143.64,143.53,5.03082586]
[1641750320002,1.741,143.63,143.53,5.03082586]
[1641750320209,1.741,143.63,143.54,10.4466]
[1641750320401,11.771,143.63,143.54,10.4466]
[1641750322903,15.40631353,143.63,143.49,46.64222586]
[1641750323106,15.40631353,143.63,143.5,4.741]
[1641750323302,0.07,143.62,143.5,3.0]
[1641750323503,11.771,143.61,143.5,3.0]
[1641750324804,10.4506,143.6,143.51,10.4502]
[1641750325005,24.87670403,143.58,143.51,10.4502]
[1641750325606,1.741,143.59,143.52,4.741]
[1641750325808,1.741,143.59,143.52,6.52182586]
[1641750326206,1.741,143.59,143.52,4.741]
[1641750326409,1.741,143.59,143.53,0.25]
[1641750326607,26.87449647,143.59,143.54,1.741]
[1641750326808,26.87449647,143.59,143.54,12.1878]
[1641750327208,25.13349647,143.59,143.54,12.1878]
[1641750328009,25.13349647,143.59,143.54,1.741]
[1641750328317,25.13349647,143.59,143.52,13.4494]
[1641750330917,10.03,143.63,143.52,13.4494]
[1641750331310,10.03,143.63,143.53,0.25]
[1641750331515,10.03,143.63,143.54,10.446]
[1641750331713,10.03,143.63,143.55,1.741]
[1641750331911,26.2846809,143.62,143.55,4.991]
[1641750332112,26.2846809,143.62,143.55,0.25]
[1641750332612,26.2846809,143.62,143.55,10.4462]
[1641750332813,36.7334809,143.62,143.54,1.741]
[1641750333014,1.741,143.61,143.52,3.0]
[1641750333215,36.7334809,143.62,143.52,3.0]
[1641750333614,26.2846809,143.62,143.53,10.4486]
[1641750333816,1.741,143.61,143.53,10.4486]
[1641750335118,26.2846809,143.62,143.53,10.4486]
[1641750335316,1.741,143.61,143.53,10.4486]
[1641750335916,1.741,143.61,143.54,0.25]
[1641750336118,26.2846809,143.62,143.55,10.4465]
[1641750336418,26.2846809,143.62,143.56,0.25]
[1641750336620,26.2846809,143.62,143.52,34.8223]
[1641750337018,26.2846809,143.62,143.53,3.25]
[1641750337419,26.2846809,143.62,143.54,10.447]
[1641750337619,28.0256809,143.62,143.54,10.447]
[1641750338645,38.4746809,143.62,143.54,10.447]
[1641750338846,38.4746809,143.62,143.53,3.0]
[1641750339046,1.741,143.61,143.52,10.4494]
[1641750339250,28.0256809,143.62,143.52,10.4494]
[1641750339448,28.0956809,143.62,143.53,3.0]
[1641750339648,10.4511,143.59,143.53,3.0]
[1641750340150,24.6248,143.61,143.5,13.4515]
[1641750340351,1.741,143.6,143.5,13.4515]
[1641750340850,1.741,143.6,143.5,3.0]
[1641750341855,3.52182586,143.6,143.5,3.0]
[1641750342253,0.07,143.59,143.5,3.0]
[1641750342452,1.741,143.58,143.5,3.0]
[1641750343853,0.07,143.56,143.48,3.0]
[1641750344054,1.741,143.55,143.47,3.91421762]
[1641750344255,1.741,143.55,143.46,3.91421762]
[1641750344655,26.88854166,143.54,143.46,3.91421762]
[1641750344955,1.742,143.53,143.46,3.91421762]
[1641750345354,1.742,143.53,143.47,3.0]
[1641750345553,26.88854166,143.54,143.47,3.0]
[1641750345755,12.1975,143.53,143.47,3.0]
[1641750345955,12.1975,143.53,143.44,10.85441085]
[1641750346153,1.742,143.53,143.46,2.0]
[1641750346354,26.88854166,143.54,143.46,2.0]
[1641750346756,28.63054166,143.54,143.45,14.39439323]
[1641750347356,0.07,143.53,143.43,3.91421762]
[1641750347556,1.742,143.52,143.43,3.91421762]
[1641750347758,10.4569,143.51,143.43,14.37011762]
[1641750347958,1.742,143.5,143.43,3.91421762]
[1641750348159,1.742,143.5,143.43,7.8523777]
[1641750348358,1.742,143.5,143.43,3.93816008]
[1641750348759,1.742,143.51,143.43,3.93816008]
[1641750349160,1.742,143.51,143.44,3.0]
[1641750349363,1.742,143.51,143.43,3.0]
[1641750349562,1.812,143.51,143.43,3.0]
[1641750349759,64.0,143.49,143.41,4.2627336]
[1641750349961,1.742,143.48,143.41,4.2627336]
[1641750350163,1.742,143.48,143.41,0.34851598]
[1641750350164,11.842,143.48,143.41,0.34851598]
[1641750350360,11.772,143.48,143.41,0.34851598]
[1641750350762,27.06980284,143.47,143.41,0.34851598]
[1641750351162,37.53020284,143.47,143.41,0.34851598]
[1641750352166,27.06980284,143.47,143.41,0.34851598]
[1641750353265,12.2021,143.46,143.41,0.34851598]
[1641750353665,33.8343,143.48,143.41,0.34851598]
[1641750353865,11.772,143.5,143.41,0.34851598]
[1641750354064,10.03,143.5,143.41,0.34851598]
[1641750354666,31.79023452,143.49,143.41,0.34851598]
[1641750354865,31.79023452,143.49,143.41,10.80641598]
[1641750355064,0.07,143.48,143.42,3.0]
[1641750355263,13.62282586,143.48,143.41,0.34851598]
[1641750355464,0.07,143.46,143.41,0.34851598]
[1641750355663,1.742,143.45,143.41,0.34851598]
[1641750355863,74.0,143.44,143.37,3.91421762]
[1641750356064,0.07,143.43,143.32,34.87]
[1641750356264,1.743,143.42,143.32,34.87]
[1641750356865,23.61998207,143.41,143.32,34.87]
[1641750357268,0.07,143.4,143.29,77.39241762]
[1641750357468,4.813,143.4,143.29,3.91421762]
[1641750357666,14.843,143.4,143.25,13.94421762]
[1641750357865,19.201,143.4,143.25,13.94421762]
[1641750358266,10.4675,143.37,143.26,1.78082586]
[1641750358466,19.201,143.4,143.26,1.78082586]
[1641750358666,20.98182586,143.4,143.25,10.03]
[1641750358866,19.201,143.4,143.25,10.03]
[1641750359070,3.0,143.39,143.25,11.81082586]
[1641750359269,10.4697,143.34,143.25,22.27902586]
[1641750359467,1.744,143.33,143.24,3.91421762]
[1641750359666,25.8971685,143.32,143.23,76.9184]
[1641750359869,25.8971685,143.32,143.23,0.07]
[1641750360567,25.8971685,143.32,143.23,10.5394]
[1641750360767,25.8971685,143.32,143.23,13.5394]
[1641750360967,25.8971685,143.32,143.24,0.25]
[1641750361366,25.8971685,143.32,143.23,1.78082586]
[1641750361568,25.8971685,143.32,143.21,20.5012]
[1641750361867,1.745,143.35,143.22,3.52582586]
[1641750362067,10.03,143.35,143.22,3.52582586]
[1641750362266,10.03,143.35,143.22,14.70554239]
[1641750362668,10.03,143.35,143.22,33.30994239]
[1641750362868,10.03,143.38,143.23,10.54]
[1641750363069,10.03,143.38,143.24,1.744]
[1641750363373,79.4416,143.41,143.25,10.54]
[1641750363668,79.4416,143.41,143.27,34.87]
[1641750363969,25.3072943,143.4,143.28,2.324]
[1641750364172,25.3072943,143.4,143.28,7.10482586]
[1641750364604,25.3072943,143.4,143.29,1.78082586]
[1641750364771,25.3072943,143.4,143.3,1.744]
[1641750364976,25.3072943,143.4,143.3,15.4572]
[1641750365170,25.3072943,143.4,143.3,17.23802586]
[1641750365671,25.3072943,143.4,143.3,15.4572]
[1641750365874,10.03,143.42,143.3,15.4572]
[1641750366073,1.744,143.44,143.31,2.04082586]
[1641750366273,1.743,143.45,143.32,22.2329]
[1641750366473,1.743,143.45,143.33,0.26]
[1641750366673,1.743,143.45,143.33,2.04082586]
[1641750366873,28.05236169,143.44,143.34,0.25]
[1641750367074,28.05236169,143.44,143.34,5.03082586]
[1641750367274,28.05236169,143.44,143.36,10.4603]
[1641750367476,28.05236169,143.44,143.37,0.25]
[1641750368374,28.05236169,143.44,143.37,10.7094]
[1641750368575,28.05236169,143.44,143.37,10.4594]
[1641750373289,1.743,143.45,143.37,10.4594]
[1641750373487,1.743,143.45,143.38,0.25]
[1641750373786,1.743,143.47,143.39,10.4572]
[1641750373988,11.773,143.52,143.4,1.993]
[1641750374188,11.773,143.52,143.4,3.0]
[1641750374386,26.0622903,143.51,143.41,2.03082586]
[1641750374588,26.0622903,143.51,143.42,3.0]
[1641750374886,26.0622903,143.51,143.43,0.25]
[1641750375090,26.0622903,143.51,143.43,1.992]
[1641750375288,26.0622903,143.51,143.42,3.0]
[1641750375489,26.0622903,143.51,143.41,34.8459]
[1641750375689,26.0622903,143.51,143.42,3.52282586]
[1641750375890,26.0622903,143.51,143.42,17.23862586]
[1641750376490,26.0622903,143.51,143.43,0.25]
[1641750376689,1.742,143.55,143.44,1.742]
[1641750376891,1.742,143.55,143.45,0.25]
[1641750377094,89.63575827,143.57,143.46,1.742]
[1641750377492,89.63575827,143.57,143.47,3.25]
[1641750377698,31.07817945,143.55,143.47,0.25]
[1641750377893,31.07817945,143.55,143.48,3.0]
[1641750378093,31.07817945,143.55,143.47,0.25]
[1641750378294,31.07817945,143.55,143.47,10.7028]
[1641750379613,31.07817945,143.55,143.48,3.0]
[1641750379813,31.07817945,143.55,143.48,10.4528]
[1641750380016,1.741,143.54,143.46,3.0]
[1641750380221,30.31917945,143.55,143.47,0.25]
[1641750380816,30.31917945,143.55,143.47,10.7023]
[1641750381517,30.31917945,143.55,143.48,3.0]
[1641750381716,76.7565,143.57,143.48,4.741]
[1641750381918,10.03,143.6,143.49,0.25]
[1641750382118,10.03,143.6,143.5,1.741]
[1641750382518,10.1,143.6,143.5,1.741]
[1641750382719,10.1,143.6,143.49,0.25]
[1641750382720,1.741,143.59,143.49,0.25]
[1641750382920,1.741,143.59,143.51,10.4502]
[1641750383419,0.07,143.58,143.51,10.4502]
[1641750383619,1.741,143.57,143.51,10.4502]
[1641750384920,22.92604582,143.58,143.51,10.4502]
[1641750385519,22.92604582,143.58,143.54,10.4484]
[1641750385720,22.92604582,143.58,143.52,3.0]
[1641750386323,22.92604582,143.58,143.49,3.0]
[1641750386520,22.92604582,143.58,143.52,10.4488]
[1641750386922,22.92604582,143.58,143.53,3.0]
[1641750387123,22.92604582,143.58,143.52,10.4488]
[1641750387321,1.811,143.57,143.46,120.2549]
[1641750387522,1.811,143.57,143.48,3.0]
[1641750388122,1.811,143.57,143.47,3.0]
[1641750389122,1.811,143.57,143.47,13.4514]
[1641750390123,1.811,143.57,143.47,23.4814]
[1641750390932,1.811,143.57,143.48,10.6997]
[1641750391123,0.07,143.57,143.49,4.741]
[1641750391524,0.07,143.57,143.5,0.25]
[1641750392124,0.07,143.57,143.49,4.741]
[1641750392322,0.07,143.57,143.49,3.0]
[1641750392323,1.741,143.56,143.49,3.0]
[1641750392524,1.741,143.57,143.48,3.0]
[1641750392724,22.92604582,143.58,143.49,1.741]
[1641750392923,22.92604582,143.58,143.5,0.25]
[1641750393129,22.92604582,143.58,143.53,10.4491]
[1641750393525,22.92604582,143.58,143.51,1.741]
[1641750393726,22.92604582,143.58,143.5,3.0]
[1641750394927,22.92604582,143.58,143.53,10.4491]
[1641750397531,22.92604582,143.58,143.51,10.7]
[1641750397730,22.92604582,143.58,143.51,10.45]
[1641750398232,22.99604582,143.58,143.51,10.45]
[1641750398435,22.99604582,143.58,143.5,3.0]
[1641750398436,1.741,143.57,143.5,3.0]
[1641750398636,1.741,143.57,143.49,3.0]
[1641750398836,1.741,143.57,143.47,10.03]
[1641750399038,1.741,143.57,143.48,3.0]
[1641750399838,1.741,143.57,143.49,10.4521]
[1641750402042,24.73704582,143.58,143.49,10.4521]
[1641750402244,22.92604582,143.58,143.49,10.4521]
[1641750402447,1.741,143.57,143.49,10.4521]
[1641750402643,1.741,143.57,143.48,4.741]
[1641750402842,12.2642,143.57,143.48,3.0]
[1641750403042,1.811,143.57,143.48,3.0]
[1641750403244,1.811,143.57,143.45,3.0]
[1641750403446,102.5105,143.57,143.45,0.25]
[1641750403847,102.5105,143.57,143.45,10.7044]
[1641750404242,102.5105,143.57,143.45,10.4544]
[1641750404844,30.8066635,143.54,143.45,10.4544]
[1641750405043,32.5486635,143.54,143.45,10.4544]
[1641750405247,32.6186635,143.54,143.44,1.741]
[1641750405443,42.6486635,143.54,143.43,3.91421762]
[1641750405644,44.42948936,143.54,143.43,3.91421762]
[1641750405865,44.42948936,143.54,143.42,3.91421762]
[1641750406069,0.07,143.52,143.42,3.91421762]
[1641750406270,30.08430412,143.5,143.42,3.91421762]
[1641750406868,40.54270412,143.5,143.42,3.91421762]
[1641750407068,40.54270412,143.5,143.41,10.4575]
[1641750407271,40.54270412,143.5,143.42,0.25]
[1641750407668,30.08430412,143.5,143.42,0.25]
[1641750407868,29.58430412,143.5,143.42,10.7071]
[1641750408368,29.58430412,143.5,143.42,10.4571]
[1641750410269,29.58430412,143.5,143.4,12.2001]
[1641750410470,1.812,143.49,143.41,3.0]
[1641750410872,1.812,143.49,143.4,10.4581]
[1641750411072,1.812,143.49,143.39,3.91421762]
[1641750411270,1.812,143.49,143.38,34.8585]
[1641750411571,0.07,143.49,143.39,26.92794239]
[1641750411771,0.07,143.49,143.4,44.8721]
[1641750411971,0.07,143.49,143.41,78.6799]
[1641750412269,0.07,143.49,143.41,93.49072586]
[1641750412471,0.07,143.49,143.42,1.78082586]
[1641750412671,0.07,143.49,143.43,1.742]
[1641750412872,0.07,143.49,143.43,40.0945]
[1641750413073,0.07,143.49,143.44,1.78082586]
[1641750413574,0.07,143.49,143.45,3.25]
[1641750413772,0.07,143.49,143.45,15.1956]
[1641750414171,0.07,143.49,143.45,13.4536]
[1641750415874,0.07,143.49,143.46,10.704]
[1641750416276,0.07,143.49,143.47,3.0]
[1641750416474,77.1535,143.57,143.48,76.25]
[1641750416675,50.0683,143.61,143.49,10.03]
[1641750416874,50.0683,143.61,143.5,0.25]
[1641750417076,26.61341407,143.6,143.53,10.4483]
[1641750419978,26.61341407,143.6,143.55,10.4476]
[1641750420477,26.61341407,143.6,143.56,3.0]
[1641750420677,26.61341407,143.6,143.53,36.60282586]
[1641750420678,26.61341407,143.6,143.53,34.822]
[1641750421778,26.61341407,143.6,143.55,10.4473]
[1641750424780,26.61341407,143.6,143.52,1.741]
[1641750424979,26.61341407,143.6,143.51,34.8267]
[1641750425182,26.61341407,143.6,143.49,10.03]
[1641750425183,1.741,143.59,143.49,10.03]
[1641750425381,1.741,143.59,143.5,3.0]
[1641750425781,1.741,143.59,143.48,34.8327]
[1641750426483,1.741,143.59,143.47,12.1914]
[1641750426484,29.08588373,143.57,143.47,1.741]
[1641750426683,1.741,143.56,143.48,3.0]
[1641750426982,29.08588373,143.57,143.48,3.0]
[1641750426983,30.82688373,143.57,143.48,10.4511]
[1641750428884,30.82688373,143.57,143.46,1.741]
[1641750429088,3.0,143.56,143.43,1.741]
[1641750429285,29.16760782,143.54,143.42,10.03]
[1641750429486,4.742,143.53,143.43,3.0]
[1641750429685,11.106,143.53,143.41,3.91421762]
[1641750429887,34.2179,143.53,143.4,86.8938]
[1641750430087,34.2179,143.53,143.41,3.0]
[1641750430486,27.75489071,143.51,143.42,10.4558]
[1641750430691,27.75489071,143.51,143.43,1.742]
[1641750430887,1.742,143.5,143.43,1.742]
[1641750431088,29.49689071,143.51,143.43,1.742]
[1641750431488,39.95429071,143.51,143.43,1.742]
[1641750433018,39.95429071,143.51,143.42,10.4573]
[1641750433220,27.75489071,143.51,143.43,0.25]
[1641750433420,27.75489071,143.51,143.43,1.992]
[1641750433621,27.75489071,143.51,143.43,0.25]
[1641750434422,27.75489071,143.51,143.44,10.4557]
[1641750434625,27.75489071,143.51,143.45,1.742]
[1641750434823,27.75489071,143.51,143.45,1.992]
[1641750435022,27.75489071,143.51,143.44,1.742]
[1641750435423,27.75489071,143.51,143.45,0.25]
[1641750435626,12.197,143.55,143.45,0.25]
[1641750435825,97.6604,143.56,143.46,1.742]
[1641750436027,99.4024,143.56,143.46,1.742]
[1641750436231,99.4024,143.56,143.47,0.25]
[1641750436629,28.96207717,143.55,143.47,3.25]
[1641750437230,28.96207717,143.55,143.47,0.25]
[1641750437527,28.96207717,143.55,143.47,1.992]
[1641750437731,28.96207717,143.55,143.47,12.1951]
[1641750437926,1.742,143.54,143.47,10.4531]
[1641750438327,1.742,143.54,143.45,3.0]
[1641750439130,12.1972,143.54,143.45,10.4545]
[1641750439431,12.1972,143.54,143.42,3.71066164]
[1641750439627,35.0195,143.54,143.43,3.0]
[1641750440027,24.5643,143.54,143.44,0.25]
[1641750440834,24.5643,143.54,143.44,10.7051]
[1641750442431,1.742,143.54,143.44,10.7051]
[1641750442630,1.742,143.54,143.45,3.0]
[1641750442831,28.96207717,143.55,143.45,13.4529]
[1641750443032,28.96207717,143.55,143.46,0.25]
[1641750443231,28.96207717,143.55,143.47,1.742]
[1641750443432,28.96207717,143.55,143.48,0.25]
[1641750443632,28.96207717,143.55,143.46,1.992]
[1641750444033,1.78082586,143.54,143.46,12.4454]
[1641750444232,28.96207717,143.55,143.46,10.7034]
[1641750445833,28.96207717,143.55,143.47,23.7402]
[1641750446033,28.96207717,143.55,143.48,1.742]
[1641750446334,3.51385661,143.6,143.48,12.022]
[1641750446535,76.4069,143.61,143.49,5.04082586]
[1641750446835,76.4069,143.61,143.53,10.448]
[1641750447138,23.30349773,143.6,143.53,10.448]
[1641750447334,23.30349773,143.6,143.54,0.25]
[1641750447535,23.30349773,143.6,143.54,1.991]
[1641750447737,23.30349773,143.6,143.54,0.25]
[1641750447935,23.30349773,143.6,143.54,1.991]
[1641750448135,23.30349773,143.6,143.55,10.4477]
[1641750448337,23.30349773,143.6,143.5,1.741]
[1641750448536,23.30349773,143.6,143.53,0.25]
[1641750448939,23.37349773,143.6,143.5,0.25]
[1641750449136,1.741,143.59,143.49,37.8314]
[1641750449336,1.741,143.59,143.49,34.8314]
[1641750449538,1.741,143.59,143.48,13.73966164]
[1641750449742,1.741,143.59,143.48,11.771]
[1641750450138,1.741,143.59,143.49,0.25]
[1641750450338,49.14509773,143.6,143.49,0.25]
[1641750451140,49.14509773,143.6,143.52,10.4485]
[1641750451540,25.04449773,143.6,143.53,3.25]
[1641750451739,23.30349773,143.6,143.53,3.25]
[1641750452141,23.30349773,143.6,143.53,0.25]
[1641750452344,23.30349773,143.6,143.54,10.446]
[1641750452741,23.30349773,143.6,143.55,3.25]
[1641750453345,23.30349773,143.6,143.55,0.25]
[1641750453543,23.30349773,143.6,143.54,3.0]
[1641750453943,23.30349773,143.6,143.51,34.8266]
[1641750454143,23.30349773,143.6,143.52,3.0]
[1641750455048,23.30349773,143.6,143.53,0.25]
[1641750455447,23.30349773,143.6,143.52,3.0]
[1641750455645,23.30349773,143.6,143.53,0.25]
[1641750455847,23.30349773,143.6,143.54,10.4481]
[1641750456647,22.80349773,143.6,143.54,10.4481]
[1641750457152,22.80349773,143.6,143.55,10.4474]
[1641750460654,22.80349773,143.6,143.56,3.0]
[1641750460855,22.80349773,143.6,143.55,10.4474]
[1641750461358,93.3,143.63,143.56,0.25]
[1641750461555,93.3,143.63,143.57,1.741]
[1641750461955,93.3,143.63,143.58,0.25]
[1641750462161,93.3,143.63,143.59,1.74]
[1641750462356,23.84518739,143.66,143.6,0.25]
[1641750462556,23.84518739,143.66,143.61,12.1826]
[1641750462760,23.84518739,143.66,143.61,10.4426]
[1641750462957,23.84518739,143.66,143.62,0.25]
[1641750463557,1.78082586,143.7,143.62,0.25]
[1641750463760,95.07185661,143.71,143.62,10.6927]
[1641750463957,93.3,143.71,143.63,1.99]